[Event "Early-Titled-Tuesday-Blitz-February-13-2024"]
[Site "Chess.com"]
[Date "2024.02.13"]
[Round "7"]
[White "SimonKnightRivendell"]
[Black "Shodikulov_Jamshid1990"]
[Result "0-1"]
[WhiteElo "2148"]
[BlackElo "2367"]
[TimeControl "180+1"]
[EndTime "9:20:48 PST"]
[Termination "Shodikulov_Jamshid1990 won on time"]

1. d4 {[%clk 0:02:58.3]} 1... Nf6 {[%clk 0:02:54.9]} 2. c4 {[%clk 0:02:56.9]}
2... c5 {[%clk 0:02:54.2]} 3. d5 {[%clk 0:02:55.3]} 3... b5 {[%clk 0:02:53.5]}
4. Nc3 {[%clk 0:02:52.8]} 4... b4 {[%clk 0:02:51.2]} 5. Na4 {[%clk 0:02:51.6]}
5... d6 {[%clk 0:02:49.9]} 6. b3 {[%clk 0:02:50.1]} 6... g6 {[%clk 0:02:49.6]}
7. Bb2 {[%clk 0:02:37.8]} 7... Bg7 {[%clk 0:02:49.2]} 8. e3 {[%clk 0:02:36.4]}
8... O-O {[%clk 0:02:48.5]} 9. Bd3 {[%clk 0:02:35.9]} 9... Bd7 {[%clk
0:02:33.6]} 10. Nf3 {[%clk 0:02:33.7]} 10... Bxa4 {[%clk 0:02:33]} 11. bxa4
{[%clk 0:02:33.2]} 11... a5 {[%clk 0:02:33.2]} 12. O-O {[%clk 0:02:28.5]} 12...
Nbd7 {[%clk 0:02:32.3]} 13. Qc2 {[%clk 0:02:24.8]} 13... Nb6 {[%clk 0:02:30.5]}
14. e4 {[%clk 0:02:10]} 14... Qe8 {[%clk 0:02:01.9]} 15. e5 {[%clk 0:02:07.4]}
15... dxe5 {[%clk 0:02:01]} 16. Bxe5 {[%clk 0:02:06.7]} 16... Qxa4 {[%clk
0:01:58.6]} 17. Qe2 {[%clk 0:01:53]} 17... Rfe8 {[%clk 0:01:53.6]} 18. Rfe1
{[%clk 0:01:41.8]} 18... Qd7 {[%clk 0:01:42.2]} 19. Rad1 {[%clk 0:01:31.2]}
19... Nc8 {[%clk 0:01:41.5]} 20. Bf4 {[%clk 0:01:14.7]} 20... Nh5 {[%clk
0:01:02.9]} 21. Be5 {[%clk 0:01:09.7]} 21... Nf6 {[%clk 0:00:53.4]} 22. Bf4
{[%clk 0:01:04.8]} 22... Nh5 {[%clk 0:00:49.2]} 23. Be5 {[%clk 0:01:04.2]} 23...
f6 {[%clk 0:00:39.7]} 24. Bb2 {[%clk 0:01:01.4]} 24... Nd6 {[%clk 0:00:38.8]}
25. Qe3 {[%clk 0:00:55.3]} 25... a4 {[%clk 0:00:31.7]} 26. Qxc5 {[%clk
0:00:52.2]} 26... Nf4 {[%clk 0:00:22.1]} 27. Qxb4 {[%clk 0:00:47.4]} 27... Rab8
{[%clk 0:00:19.4]} 28. Qc3 {[%clk 0:00:39]} 28... Nxd3 {[%clk 0:00:16.5]} 29.
Rxd3 {[%clk 0:00:36.9]} 29... Rec8 {[%clk 0:00:15.6]} 30. Nd2 {[%clk 0:00:32.7]}
30... Qc7 {[%clk 0:00:13.3]} 31. Rde3 {[%clk 0:00:32.2]} 31... Bf8 {[%clk
0:00:11.4]} 32. Ba3 {[%clk 0:00:25.8]} 32... Nf5 {[%clk 0:00:10.6]} 33. Re6
{[%clk 0:00:20.7]} 33... Qd7 {[%clk 0:00:08.9]} 34. Ne4 {[%clk 0:00:10.8]} 34...
Qxd5 {[%clk 0:00:08.7]} 35. cxd5 {[%clk 0:00:06.7]} 35... Rxc3 {[%clk
0:00:09.4]} 36. Nxc3 {[%clk 0:00:03.9]} 36... Kf7 {[%clk 0:00:10.3]} 37. Rc6
{[%clk 0:00:02]} 37... Rd8 {[%clk 0:00:10.4]} 0-1

[Event "Early-Titled-Tuesday-Blitz-February-13-2024"]
[Site "Chess.com"]
[Date "2024.02.13"]
[Round "7"]
[White "toog"]
[Black "Zurability"]
[Result "0-1"]
[WhiteElo "2563"]
[BlackElo "2749"]
[TimeControl "180+1"]
[EndTime "9:20:51 PST"]
[Termination "Zurability won by checkmate"]

1. d4 {[%clk 0:02:58.1]} 1... Nf6 {[%clk 0:02:57]} 2. Nf3 {[%clk 0:02:57.2]}
2... e6 {[%clk 0:02:55.7]} 3. Bf4 {[%clk 0:02:57.4]} 3... b6 {[%clk 0:02:51.9]}
4. e3 {[%clk 0:02:57.2]} 4... Bb7 {[%clk 0:02:52.1]} 5. Nbd2 {[%clk 0:02:57]}
5... g6 {[%clk 0:02:52.3]} 6. Be2 {[%clk 0:02:57.1]} 6... Bg7 {[%clk 0:02:53]}
7. O-O {[%clk 0:02:57.2]} 7... O-O {[%clk 0:02:53.7]} 8. c3 {[%clk 0:02:57]}
8... d6 {[%clk 0:02:54.4]} 9. h3 {[%clk 0:02:57.1]} 9... Nbd7 {[%clk 0:02:55.1]}
10. a4 {[%clk 0:02:57]} 10... a6 {[%clk 0:02:54.8]} 11. Qc2 {[%clk 0:02:56.5]}
11... Qe7 {[%clk 0:02:55.4]} 12. Bh2 {[%clk 0:02:56.3]} 12... e5 {[%clk
0:02:55.9]} 13. dxe5 {[%clk 0:02:25]} 13... dxe5 {[%clk 0:02:55.6]} 14. Nc4
{[%clk 0:02:22.5]} 14... Nd5 {[%clk 0:02:28.9]} 15. Rfd1 {[%clk 0:02:18.9]}
15... e4 {[%clk 0:02:14.8]} 16. Nd4 {[%clk 0:02:05.4]} 16... f5 {[%clk
0:02:14.4]} 17. Bf1 {[%clk 0:01:47.2]} 17... f4 {[%clk 0:02:00.9]} 18. exf4
{[%clk 0:01:41.8]} 18... Nxf4 {[%clk 0:02:01.8]} 19. Ne3 {[%clk 0:01:26.6]}
19... Ne5 {[%clk 0:01:53.4]} 20. a5 {[%clk 0:01:16.9]} 20... b5 {[%clk
0:01:50.9]} 21. Bxf4 {[%clk 0:01:07.3]} 21... Rxf4 {[%clk 0:01:44.9]} 22. c4
{[%clk 0:01:07.2]} 22... b4 {[%clk 0:01:24.1]} 23. c5 {[%clk 0:01:05.3]} 23...
Raf8 {[%clk 0:01:22.7]} 24. c6 {[%clk 0:00:56.9]} 24... Rxf2 {[%clk 0:01:13.3]}
25. Qxf2 {[%clk 0:00:47.4]} 25... Rxf2 {[%clk 0:01:12.7]} 26. cxb7 {[%clk
0:00:48.1]} 26... Rf8 {[%clk 0:01:10.7]} 27. Bxa6 {[%clk 0:00:40.9]} 27... c5
{[%clk 0:00:47.7]} 28. Nb3 {[%clk 0:00:21]} 28... Qg5 {[%clk 0:00:37.5]} 29. Nc4
{[%clk 0:00:14.4]} 29... Nf3+ {[%clk 0:00:33.7]} 30. Kh1 {[%clk 0:00:14.9]}
30... Qg3 {[%clk 0:00:17.5]} 31. gxf3 {[%clk 0:00:14.7]} 31... Qxh3+ {[%clk
0:00:17.1]} 32. Kg1 {[%clk 0:00:14.6]} 32... Qg3+ {[%clk 0:00:17]} 33. Kh1
{[%clk 0:00:14.6]} 33... Qxf3+ {[%clk 0:00:16.8]} 34. Kg1 {[%clk 0:00:14.7]}
34... Qxb3 {[%clk 0:00:10.4]} 35. Rd2 {[%clk 0:00:09.8]} 35... Qg3+ {[%clk
0:00:07.9]} 36. Kh1 {[%clk 0:00:09.9]} 36... Qh3+ {[%clk 0:00:05.6]} 37. Kg1
{[%clk 0:00:10.2]} 37... Bd4+ {[%clk 0:00:04.9]} 38. Rxd4 {[%clk 0:00:10.6]}
38... cxd4 {[%clk 0:00:05.5]} 39. Nb6 {[%clk 0:00:09.8]} 39... Qg3+ {[%clk
0:00:05]} 40. Kh1 {[%clk 0:00:10.3]} 40... Rf5 {[%clk 0:00:04.3]} 41. Bc4+
{[%clk 0:00:09.9]} 41... Kg7 {[%clk 0:00:04.4]} 42. Be2 {[%clk 0:00:09.5]} 42...
Rf2 {[%clk 0:00:04.2]} 43. b8=Q {[%clk 0:00:08.1]} 43... Rh2# {[%clk 0:00:04.4]}
0-1

[Event "Early-Titled-Tuesday-Blitz-February-13-2024"]
[Site "Chess.com"]
[Date "2024.02.13"]
[Round "7"]
[White "JEIGOTH"]
[Black "Flaccidmoves"]
[Result "0-1"]
[WhiteElo "2223"]
[BlackElo "2431"]
[TimeControl "180+1"]
[EndTime "9:20:52 PST"]
[Termination "Flaccidmoves won by checkmate"]

1. d4 {[%clk 0:02:56.1]} 1... Nf6 {[%clk 0:02:58.9]} 2. Nf3 {[%clk 0:02:54.3]}
2... g6 {[%clk 0:02:59.4]} 3. Nc3 {[%clk 0:02:53]} 3... d5 {[%clk 0:02:59.3]} 4.
Bf4 {[%clk 0:02:52.7]} 4... Bg7 {[%clk 0:02:58.8]} 5. e3 {[%clk 0:02:52.8]} 5...
O-O {[%clk 0:02:58]} 6. Bd3 {[%clk 0:02:52.8]} 6... c5 {[%clk 0:02:57]} 7. O-O
{[%clk 0:02:51.2]} 7... Nc6 {[%clk 0:02:56.7]} 8. dxc5 {[%clk 0:02:41.2]} 8...
Nh5 {[%clk 0:02:45.4]} 9. Bg3 {[%clk 0:02:36.6]} 9... Nxg3 {[%clk 0:02:44.8]}
10. hxg3 {[%clk 0:02:37.5]} 10... e5 {[%clk 0:02:44.7]} 11. e4 {[%clk 0:02:37]}
11... dxe4 {[%clk 0:02:40.2]} 12. Nxe4 {[%clk 0:02:37.9]} 12... h6 {[%clk
0:02:35.7]} 13. Nd6 {[%clk 0:02:28.5]} 13... f5 {[%clk 0:02:26.3]} 14. Bc4+
{[%clk 0:02:26.8]} 14... Kh7 {[%clk 0:02:26.8]} 15. c3 {[%clk 0:02:13.4]} 15...
e4 {[%clk 0:02:26.4]} 16. Nd4 {[%clk 0:02:11.3]} 16... Ne5 {[%clk 0:02:21.1]}
17. Be2 {[%clk 0:01:58.5]} 17... b6 {[%clk 0:02:04.8]} 18. Nxc8 {[%clk
0:01:49.1]} 18... Qxc8 {[%clk 0:02:05.7]} 19. cxb6 {[%clk 0:01:48.8]} 19... axb6
{[%clk 0:02:05.9]} 20. a4 {[%clk 0:01:47.2]} 20... Rd8 {[%clk 0:02:04.6]} 21.
Qb3 {[%clk 0:01:44.7]} 21... Rd6 {[%clk 0:01:56]} 22. Rfd1 {[%clk 0:01:39.4]}
22... Qd7 {[%clk 0:01:54.1]} 23. Nb5 {[%clk 0:01:35.8]} 23... Rxd1+ {[%clk
0:01:51.8]} 24. Rxd1 {[%clk 0:01:36.7]} 24... Qe7 {[%clk 0:01:47.6]} 25. Rd6
{[%clk 0:01:23.4]} 25... Nd7 {[%clk 0:01:30.6]} 26. Bc4 {[%clk 0:01:13.1]} 26...
Nc5 {[%clk 0:01:28.4]} 27. Qd1 {[%clk 0:01:13]} 27... e3 {[%clk 0:01:23.5]} 28.
fxe3 {[%clk 0:01:02.7]} 28... Qxe3+ {[%clk 0:01:23.1]} 29. Kh2 {[%clk
0:01:03.1]} 29... Ne4 {[%clk 0:01:22.8]} 30. Rd3 {[%clk 0:00:53.1]} 30... Qc5
{[%clk 0:01:20.9]} 31. b3 {[%clk 0:00:51.9]} 31... Nf2 {[%clk 0:01:20.5]} 32.
Qf3 {[%clk 0:00:50.5]} 32... Re8 {[%clk 0:01:15.8]} 33. Rd5 {[%clk 0:00:47.5]}
33... Ng4+ {[%clk 0:01:14.2]} 34. Qxg4 {[%clk 0:00:43.2]} 34... fxg4 {[%clk
0:01:15.1]} 35. Rxc5 {[%clk 0:00:43]} 35... bxc5 {[%clk 0:01:16]} 36. a5 {[%clk
0:00:43.5]} 36... Ra8 {[%clk 0:01:13.5]} 37. b4 {[%clk 0:00:43.9]} 37... Bxc3
{[%clk 0:00:58.2]} 38. Nxc3 {[%clk 0:00:20.9]} 38... cxb4 {[%clk 0:00:58.1]} 39.
Nd5 {[%clk 0:00:17.6]} 39... Rxa5 {[%clk 0:00:57.4]} 40. Bb3 {[%clk 0:00:11.6]}
40... Ra3 {[%clk 0:00:55.1]} 41. Bc4 {[%clk 0:00:11.7]} 41... b3 {[%clk
0:00:54.9]} 42. Nc3 {[%clk 0:00:09.8]} 42... b2 {[%clk 0:00:54.3]} 43. Nb1
{[%clk 0:00:10.3]} 43... Re3 {[%clk 0:00:47.4]} 44. Ba2 {[%clk 0:00:06.5]} 44...
Kg7 {[%clk 0:00:46.2]} 45. Kg1 {[%clk 0:00:06.7]} 45... Re2 {[%clk 0:00:45.5]}
46. Kf1 {[%clk 0:00:06.5]} 46... Rc2 {[%clk 0:00:45.3]} 47. Kg1 {[%clk
0:00:04.4]} 47... Kf6 {[%clk 0:00:43.8]} 48. Kf1 {[%clk 0:00:05]} 48... h5
{[%clk 0:00:42.4]} 49. Kg1 {[%clk 0:00:03.9]} 49... g5 {[%clk 0:00:42.6]} 50.
Kf1 {[%clk 0:00:04.3]} 50... h4 {[%clk 0:00:43]} 51. gxh4 {[%clk 0:00:05.2]}
51... gxh4 {[%clk 0:00:43.6]} 52. Kg1 {[%clk 0:00:06.1]} 52... Kf5 {[%clk
0:00:43.7]} 53. Kf1 {[%clk 0:00:06.4]} 53... Kf4 {[%clk 0:00:44]} 54. Kg1 {[%clk
0:00:05.8]} 54... Kg3 {[%clk 0:00:44.1]} 55. Kf1 {[%clk 0:00:05.3]} 55... h3
{[%clk 0:00:42.4]} 56. gxh3 {[%clk 0:00:04.8]} 56... gxh3 {[%clk 0:00:43.3]} 57.
Kg1 {[%clk 0:00:04.4]} 57... Rc1# {[%clk 0:00:43.1]} 0-1

[Event "Early-Titled-Tuesday-Blitz-February-13-2024"]
[Site "Chess.com"]
[Date "2024.02.13"]
[Round "7"]
[White "MiguelEduardoGB"]
[Black "emeli_chess"]
[Result "0-1"]
[WhiteElo "2155"]
[BlackElo "2362"]
[TimeControl "180+1"]
[EndTime "9:20:54 PST"]
[Termination "emeli_chess won on time"]

1. Nf3 {[%clk 0:03:00.9]} 1... f5 {[%clk 0:02:59.3]} 2. b3 {[%clk 0:02:59.3]}
2... d6 {[%clk 0:02:57.9]} 3. Bb2 {[%clk 0:02:59.8]} 3... e5 {[%clk 0:02:57.7]}
4. d3 {[%clk 0:02:59.9]} 4... Nf6 {[%clk 0:02:55.7]} 5. c4 {[%clk 0:02:57.2]}
5... Be7 {[%clk 0:02:53.8]} 6. Nfd2 {[%clk 0:02:48.6]} 6... O-O {[%clk
0:02:51.7]} 7. g3 {[%clk 0:02:46.4]} 7... Qe8 {[%clk 0:02:45.7]} 8. Bg2 {[%clk
0:02:44.3]} 8... Qh5 {[%clk 0:02:44.6]} 9. Nc3 {[%clk 0:02:43]} 9... c6 {[%clk
0:02:41.7]} 10. Qc2 {[%clk 0:02:39.4]} 10... Na6 {[%clk 0:02:36.3]} 11. a3
{[%clk 0:02:28.4]} 11... Nc7 {[%clk 0:02:35.3]} 12. h3 {[%clk 0:02:21.5]} 12...
Bd7 {[%clk 0:02:33.8]} 13. O-O-O {[%clk 0:02:18.4]} 13... a6 {[%clk 0:02:31.5]}
14. g4 {[%clk 0:02:14]} 14... fxg4 {[%clk 0:02:26.1]} 15. hxg4 {[%clk
0:02:10.2]} 15... Qxg4 {[%clk 0:02:26.1]} 16. Rdg1 {[%clk 0:02:00.8]} 16... Qe6
{[%clk 0:02:08.3]} 17. Nce4 {[%clk 0:01:48.8]} 17... Nxe4 {[%clk 0:01:59.1]} 18.
Bxe4 {[%clk 0:01:44.4]} 18... Rf5 {[%clk 0:01:44.4]} 19. Bxf5 {[%clk 0:01:29.9]}
19... Qxf5 {[%clk 0:01:43.9]} 20. f3 {[%clk 0:01:24.7]} 20... b5 {[%clk
0:01:24.2]} 21. Kb1 {[%clk 0:01:23.8]} 21... bxc4 {[%clk 0:01:23.4]} 22. Nxc4
{[%clk 0:01:23.1]} 22... Rb8 {[%clk 0:01:21]} 23. Ne3 {[%clk 0:01:05.8]} 23...
Qe6 {[%clk 0:01:06.4]} 24. Nc4 {[%clk 0:01:00.7]} 24... Bf6 {[%clk 0:00:59.5]}
25. d4 {[%clk 0:00:45.7]} 25... g6 {[%clk 0:00:44.4]} 26. dxe5 {[%clk
0:00:20.8]} 26... dxe5 {[%clk 0:00:35.3]} 27. e3 {[%clk 0:00:09.4]} 27... Nd5
{[%clk 0:00:29.7]} 28. e4 {[%clk 0:00:06.3]} 28... Nf4 {[%clk 0:00:27.9]} 29.
Ka2 {[%clk 0:00:04.6]} 29... Be8 {[%clk 0:00:26.7]} 30. Ne3 {[%clk 0:00:04.9]}
30... Bf7 {[%clk 0:00:25.8]} 31. Nc4 {[%clk 0:00:05.3]} 31... a5 {[%clk
0:00:24.2]} 32. a4 {[%clk 0:00:05.2]} 32... Qe7 {[%clk 0:00:19.6]} 33. Rd1
{[%clk 0:00:04.7]} 33... Ne6 {[%clk 0:00:18.8]} 34. Rd6 {[%clk 0:00:03.9]} 34...
Nd4 {[%clk 0:00:18]} 35. Bxd4 {[%clk 0:00:04]} 35... exd4 {[%clk 0:00:18.2]} 36.
Qd3 {[%clk 0:00:02.5]} 36... Kg7 {[%clk 0:00:17]} 37. Rxc6 {[%clk 0:00:02.5]}
37... Qb4 {[%clk 0:00:15.2]} 38. Ra6 {[%clk 0:00:01.6]} 38... Bxc4 {[%clk
0:00:12.3]} 39. Qxc4 {[%clk 0:00:01.3]} 39... Qd2+ {[%clk 0:00:11.9]} 40. Ka3
{[%clk 0:00:01.9]} 40... Be7+ {[%clk 0:00:10.6]} 0-1

[Event "Early-Titled-Tuesday-Blitz-February-13-2024"]
[Site "Chess.com"]
[Date "2024.02.13"]
[Round "7"]
[White "Gabrielian_Artur"]
[Black "Sina_Movahed"]
[Result "0-1"]
[WhiteElo "2800"]
[BlackElo "2997"]
[TimeControl "180+1"]
[EndTime "9:20:55 PST"]
[Termination "Sina_Movahed won on time"]

1. e4 {[%clk 0:03:00.9]} 1... c5 {[%clk 0:02:59.5]} 2. Nf3 {[%clk 0:02:54.9]}
2... d6 {[%clk 0:03:00.1]} 3. d4 {[%clk 0:02:54.4]} 3... cxd4 {[%clk 0:03:01]}
4. Nxd4 {[%clk 0:02:54.6]} 4... Nf6 {[%clk 0:03:01.9]} 5. Nc3 {[%clk 0:02:54.7]}
5... g6 {[%clk 0:03:01.1]} 6. Be3 {[%clk 0:02:53.1]} 6... a6 {[%clk 0:03:01.7]}
7. f3 {[%clk 0:02:50.2]} 7... h5 {[%clk 0:03:02.3]} 8. Qd2 {[%clk 0:02:43.2]}
8... Nbd7 {[%clk 0:03:02.7]} 9. Be2 {[%clk 0:02:41.9]} 9... Bg7 {[%clk 0:03:02]}
10. O-O {[%clk 0:02:41.4]} 10... O-O {[%clk 0:03:02.1]} 11. a4 {[%clk
0:02:41.1]} 11... Ne5 {[%clk 0:03:00.8]} 12. Kh1 {[%clk 0:02:40.8]} 12... h4
{[%clk 0:02:57.2]} 13. Nd5 {[%clk 0:02:17.2]} 13... h3 {[%clk 0:02:55.8]} 14. g4
{[%clk 0:01:59.8]} 14... Bd7 {[%clk 0:02:33.6]} 15. c4 {[%clk 0:01:56.8]} 15...
Bc6 {[%clk 0:02:25.8]} 16. Nxf6+ {[%clk 0:01:54.2]} 16... Bxf6 {[%clk
0:02:25.7]} 17. Kg1 {[%clk 0:01:43.5]} 17... Qc7 {[%clk 0:02:20]} 18. Rfc1
{[%clk 0:01:39.7]} 18... Rac8 {[%clk 0:02:15.8]} 19. a5 {[%clk 0:01:35.8]} 19...
e6 {[%clk 0:02:14.9]} 20. b3 {[%clk 0:01:25]} 20... Rfd8 {[%clk 0:02:13.7]} 21.
Bg5 {[%clk 0:01:07.8]} 21... Qe7 {[%clk 0:02:06.7]} 22. Bxf6 {[%clk 0:01:07.6]}
22... Qxf6 {[%clk 0:02:07.6]} 23. g5 {[%clk 0:01:07.8]} 23... Qg7 {[%clk
0:02:01.7]} 24. f4 {[%clk 0:01:05.1]} 24... Bxe4 {[%clk 0:01:51.5]} 25. Qe3
{[%clk 0:01:04.9]} 25... Nc6 {[%clk 0:01:50.8]} 26. Nxc6 {[%clk 0:00:57.2]}
26... Bxc6 {[%clk 0:01:49.2]} 27. Rd1 {[%clk 0:00:52.2]} 27... d5 {[%clk
0:01:47.5]} 28. Qe5 {[%clk 0:00:50.3]} 28... Qf8 {[%clk 0:01:43.1]} 29. Rd3
{[%clk 0:00:38.7]} 29... dxc4 {[%clk 0:01:15.6]} 30. Rxh3 {[%clk 0:00:35.6]}
30... Qg7 {[%clk 0:01:15.8]} 31. Bxc4 {[%clk 0:00:17.3]} 31... Qxe5 {[%clk
0:01:08.2]} 32. fxe5 {[%clk 0:00:17.4]} 32... Rd2 {[%clk 0:01:08.8]} 33. Rg3
{[%clk 0:00:17.8]} 33... Kg7 {[%clk 0:01:08.3]} 34. Rf1 {[%clk 0:00:17.9]} 34...
Rh8 {[%clk 0:01:07.3]} 35. Rf2 {[%clk 0:00:18.2]} 35... Rxf2 {[%clk 0:01:04.2]}
36. Kxf2 {[%clk 0:00:18.6]} 36... Rxh2+ {[%clk 0:01:03.6]} 37. Ke3 {[%clk
0:00:18.5]} 37... Ra2 {[%clk 0:01:03]} 38. b4 {[%clk 0:00:17.1]} 38... Ra4
{[%clk 0:00:55.5]} 39. Kd4 {[%clk 0:00:16.5]} 39... Rxb4 {[%clk 0:00:55.9]} 40.
Kc5 {[%clk 0:00:14.2]} 40... Ra4 {[%clk 0:00:55.9]} 41. Rc3 {[%clk 0:00:09.1]}
41... Rxa5+ {[%clk 0:00:55.3]} 42. Kd6 {[%clk 0:00:09.6]} 42... Ra1 {[%clk
0:00:51.4]} 43. Rc2 {[%clk 0:00:07.7]} 43... Rg1 {[%clk 0:00:47.9]} 44. Rf2
{[%clk 0:00:06.6]} 44... Rxg5 {[%clk 0:00:47.2]} 45. Ke7 {[%clk 0:00:06.5]}
45... Rf5 {[%clk 0:00:47.1]} 46. Re2 {[%clk 0:00:04.8]} 46... Bb5 {[%clk
0:00:47.3]} 47. Bxb5 {[%clk 0:00:04.8]} 47... axb5 {[%clk 0:00:47.7]} 48. Kd6
{[%clk 0:00:04.8]} 48... g5 {[%clk 0:00:47]} 49. Rb2 {[%clk 0:00:04.8]} 49... g4
{[%clk 0:00:46.9]} 50. Rxb5 {[%clk 0:00:04.8]} 50... g3 {[%clk 0:00:44.4]} 0-1

[Event "Early-Titled-Tuesday-Blitz-February-13-2024"]
[Site "Chess.com"]
[Date "2024.02.13"]
[Round "7"]
[White "Kobalia"]
[Black "ChristopherYoo"]
[Result "1-0"]
[WhiteElo "2817"]
[BlackElo "2961"]
[TimeControl "180+1"]
[EndTime "9:20:55 PST"]
[Termination "Kobalia won by resignation"]

1. e4 {[%clk 0:03:00.9]} 1... c5 {[%clk 0:02:59.6]} 2. Nf3 {[%clk 0:03:01]} 2...
d6 {[%clk 0:02:59.9]} 3. Bb5+ {[%clk 0:03:01.2]} 3... Bd7 {[%clk 0:02:59.8]} 4.
Bxd7+ {[%clk 0:03:00.8]} 4... Nxd7 {[%clk 0:03:00.7]} 5. O-O {[%clk 0:03:00.7]}
5... Ngf6 {[%clk 0:03:01.1]} 6. Qe2 {[%clk 0:03:01.2]} 6... e6 {[%clk
0:02:58.3]} 7. c3 {[%clk 0:03:01.3]} 7... Be7 {[%clk 0:02:58.2]} 8. d4 {[%clk
0:03:01.3]} 8... O-O {[%clk 0:02:58.8]} 9. Rd1 {[%clk 0:02:39]} 9... cxd4 {[%clk
0:02:53.5]} 10. cxd4 {[%clk 0:02:38.4]} 10... d5 {[%clk 0:02:54.2]} 11. e5
{[%clk 0:02:38.7]} 11... Ne4 {[%clk 0:02:54.6]} 12. Ne1 {[%clk 0:02:38.9]} 12...
h6 {[%clk 0:02:54.4]} 13. f3 {[%clk 0:02:38.2]} 13... Ng5 {[%clk 0:02:54.9]} 14.
Be3 {[%clk 0:02:37.6]} 14... Nb6 {[%clk 0:02:53]} 15. Nd2 {[%clk 0:02:34.4]}
15... Rc8 {[%clk 0:02:51.2]} 16. Rac1 {[%clk 0:02:33.8]} 16... Qd7 {[%clk
0:02:48.5]} 17. Nd3 {[%clk 0:02:28]} 17... Rxc1 {[%clk 0:02:41.8]} 18. Rxc1
{[%clk 0:02:27.1]} 18... Rc8 {[%clk 0:02:42.3]} 19. Qd1 {[%clk 0:02:22.3]} 19...
Nc4 {[%clk 0:02:39.6]} 20. Nxc4 {[%clk 0:02:21.7]} 20... dxc4 {[%clk 0:02:39.3]}
21. Nf4 {[%clk 0:02:13.9]} 21... b5 {[%clk 0:02:08]} 22. Qd2 {[%clk 0:02:13]}
22... Rd8 {[%clk 0:01:43.5]} 23. a3 {[%clk 0:02:01.6]} 23... Qb7 {[%clk
0:01:41.5]} 24. Rd1 {[%clk 0:01:53]} 24... Nh7 {[%clk 0:01:39.4]} 25. Qc2 {[%clk
0:01:47.8]} 25... Bg5 {[%clk 0:01:38.8]} 26. Qe4 {[%clk 0:01:47]} 26... Qc8
{[%clk 0:01:16.7]} 27. d5 {[%clk 0:01:34.2]} 27... Bxf4 {[%clk 0:01:16.4]} 28.
Bxf4 {[%clk 0:01:34.2]} 28... exd5 {[%clk 0:01:16.6]} 29. Rxd5 {[%clk
0:01:33.2]} 29... Rxd5 {[%clk 0:01:17.2]} 30. Qxd5 {[%clk 0:01:33.5]} 30... a6
{[%clk 0:01:17.4]} 31. Bd2 {[%clk 0:01:29]} 31... Nf8 {[%clk 0:01:16.8]} 32. h3
{[%clk 0:01:26]} 32... Ne6 {[%clk 0:01:12.2]} 33. Kh2 {[%clk 0:01:25]} 33... Qd8
{[%clk 0:01:05]} 34. Qxd8+ {[%clk 0:01:24.9]} 34... Nxd8 {[%clk 0:01:05.9]} 35.
Kg3 {[%clk 0:01:25.2]} 35... Ne6 {[%clk 0:01:04]} 36. Kf2 {[%clk 0:01:25.4]}
36... g5 {[%clk 0:01:00.3]} 37. Be3 {[%clk 0:01:19.6]} 37... Kg7 {[%clk
0:01:00.1]} 38. Ke2 {[%clk 0:01:19]} 38... Kg6 {[%clk 0:01:00]} 39. g4 {[%clk
0:01:19.2]} 39... a5 {[%clk 0:00:57.5]} 40. Bd2 {[%clk 0:01:18.7]} 40... Nd4+
{[%clk 0:00:57.3]} 41. Ke3 {[%clk 0:01:17.5]} 41... Nc2+ {[%clk 0:00:39.7]} 42.
Ke4 {[%clk 0:01:13.1]} 42... b4 {[%clk 0:00:39.9]} 43. axb4 {[%clk 0:01:11.7]}
43... axb4 {[%clk 0:00:40.8]} 44. Kd5 {[%clk 0:01:06.3]} 44... c3 {[%clk
0:00:40.7]} 45. bxc3 {[%clk 0:01:06.7]} 45... b3 {[%clk 0:00:41.2]} 46. Bc1
{[%clk 0:01:06.5]} 46... Ne3+ {[%clk 0:00:41.3]} 47. Kd4 {[%clk 0:01:01.4]}
47... Nd1 {[%clk 0:00:36.5]} 48. c4 {[%clk 0:01:01.4]} 48... b2 {[%clk
0:00:37.1]} 49. Bxb2 {[%clk 0:01:01.7]} 49... Nxb2 {[%clk 0:00:38]} 50. c5
{[%clk 0:01:02]} 50... Na4 {[%clk 0:00:38.4]} 51. Kd5 {[%clk 0:00:55.8]} 51...
h5 {[%clk 0:00:33.3]} 52. c6 {[%clk 0:00:52.7]} 52... Nb6+ {[%clk 0:00:32.8]}
53. Kd6 {[%clk 0:00:52.2]} 53... h4 {[%clk 0:00:32.7]} 54. c7 {[%clk 0:00:51.1]}
54... Kh7 {[%clk 0:00:06.9]} 55. Kc6 {[%clk 0:00:50.9]} 55... Nc8 {[%clk
0:00:07.2]} 56. Kd7 {[%clk 0:00:51]} 56... Na7 {[%clk 0:00:07.5]} 57. c8=Q
{[%clk 0:00:51]} 57... Nxc8 {[%clk 0:00:07.8]} 58. Kxc8 {[%clk 0:00:51.4]} 58...
Kg8 {[%clk 0:00:08.5]} 59. Kd7 {[%clk 0:00:50.6]} 59... Kh7 {[%clk 0:00:06.3]}
60. Ke7 {[%clk 0:00:47.7]} 60... Kg7 {[%clk 0:00:06.2]} 61. e6 {[%clk
0:00:47.9]} 61... fxe6 {[%clk 0:00:05.9]} 62. Kxe6 {[%clk 0:00:48.2]} 62... Kg6
{[%clk 0:00:06.5]} 63. Ke5 {[%clk 0:00:48.5]} 1-0